[Event "Titled Tuesday Blitz July 4 Early 2023"]
[White "Womacka, Mathias"]
[Black "Acikel, Mert"]
[WhiteFideId "4611390"]
[BlackFideId "12956465"]
[WhiteElo "2512"]
[BlackElo "2308"]
[Result "1-0"]
[Round "5"]
[TimeControl "180+2"]
[Date "2023.07.04"]
[WhiteClock "0:00:56"]
[BlackClock "0:00:56"]
[Board "170"]

1. e4 {[%clk 0:03:00]}  e5 {[%clk 0:02:58]} 2. Nf3 {[%clk 0:03:00]}  Nc6 {[%clk 0:02:58]} 3. Bb5 {[%clk 0:03:00]}  a6 {[%clk 0:02:58]} 4. Bxc6 {[%clk 0:03:00]}  dxc6 {[%clk 0:02:58]} 5. O-O {[%clk 0:03:00]}  Bg4 {[%clk 0:02:58]} 6. h3 {[%clk 0:02:59]}  h5 {[%clk 0:02:58]} 7. d3 {[%clk 0:02:59]}  Qf6 {[%clk 0:02:58]} 8. Nbd2 {[%clk 0:02:59]}  g5 {[%clk 0:02:58]} 9. Nc4 {[%clk 0:02:57]}  Bxf3 {[%clk 0:02:58]} 10. Qxf3 {[%clk 0:02:57]}  Qxf3 {[%clk 0:02:58]} 11. gxf3 {[%clk 0:02:58]}  f6 {[%clk 0:02:54]} 12. Be3 {[%clk 0:02:57]}  Ne7 {[%clk 0:02:49]} 13. Rfd1 {[%clk 0:02:57]}  Rd8 {[%clk 0:02:46]} 14. d4 {[%clk 0:02:56]}  exd4 {[%clk 0:02:41]} 15. Bxd4 {[%clk 0:02:55]}  Kf7 {[%clk 0:02:42]} 16. Be3 {[%clk 0:02:32]}  Bg7 {[%clk 0:02:39]} 17. f4 {[%clk 0:02:29]}  g4 {[%clk 0:02:28]} 18. hxg4 {[%clk 0:02:27]}  hxg4 {[%clk 0:02:29]} 19. f5 {[%clk 0:02:20]}  b6 {[%clk 0:02:27]} 20. Bf4 {[%clk 0:02:16]}  c5 {[%clk 0:02:09]} 21. Rxd8 {[%clk 0:02:06]}  Rxd8 {[%clk 0:02:07]} 22. Bxc7 {[%clk 0:02:07]}  Rd4 {[%clk 0:01:52]} 23. b3 {[%clk 0:01:54]}  b5 {[%clk 0:01:52]} 24. c3 {[%clk 0:01:52]}  Rd3 {[%clk 0:01:51]} 25. Nd6+ {[%clk 0:01:38]}  Kg8 {[%clk 0:01:51]} 26. c4 {[%clk 0:01:37]}  b4 {[%clk 0:01:45]} 27. Kf1 {[%clk 0:01:29]}  Nc6 {[%clk 0:01:41]} 28. Ke2 {[%clk 0:01:29]}  Ne5 {[%clk 0:01:34]} 29. Nb7 {[%clk 0:01:16]}  Rd7 {[%clk 0:01:32]} 30. Bxe5 {[%clk 0:01:16]}  Rxb7 {[%clk 0:01:32]} 31. Bf4 {[%clk 0:01:11]}  Re7 {[%clk 0:01:28]} 32. f3 {[%clk 0:01:10]}  gxf3+ {[%clk 0:01:28]} 33. Kxf3 {[%clk 0:01:10]}  Kf7 {[%clk 0:01:28]} 34. Rd1 {[%clk 0:01:09]}  Bf8 {[%clk 0:01:26]} 35. Rd8 {[%clk 0:01:06]}  Ra7 {[%clk 0:01:20]} 36. Bd6 {[%clk 0:01:00]}  Bxd6 {[%clk 0:01:15]} 37. Rxd6 {[%clk 0:01:01]}  Ke7 {[%clk 0:01:16]} 38. Re6+ {[%clk 0:00:58]}  Kf7 {[%clk 0:01:15]} 39. Rc6 {[%clk 0:00:57]}  Rd7 {[%clk 0:00:56]} 40. Rxc5 {[%clk 0:00:56]} 1-0


[Site "https://www.chess.com"]

[Event "Titled Tuesday Blitz July 4 Early 2023"]
[White "Sokolov, Andrei"]
[Black "Belov, Alexei"]
[WhiteFideId "11600306"]
[BlackFideId "4128206"]
[WhiteElo "2304"]
[BlackElo "2497"]
[Result "1/2-1/2"]
[Round "5"]
[TimeControl "180+2"]
[Date "2023.07.04"]
[WhiteClock "0:00:03"]
[BlackClock "0:00:20"]
[Board "172"]

1. d4 {[%clk 0:03:00]}  e6 {[%clk 0:02:59]} 2. c4 {[%clk 0:02:58]}  d5 {[%clk 0:03:00]} 3. g3 {[%clk 0:02:58]}  Nf6 {[%clk 0:03:00]} 4. Nf3 {[%clk 0:02:58]}  Be7 {[%clk 0:03:00]} 5. Bg2 {[%clk 0:02:58]}  O-O {[%clk 0:03:01]} 6. O-O {[%clk 0:02:58]}  dxc4 {[%clk 0:03:01]} 7. Qc2 {[%clk 0:02:58]}  a6 {[%clk 0:03:01]} 8. a4 {[%clk 0:02:58]}  Bd7 {[%clk 0:03:02]} 9. Ne5 {[%clk 0:02:53]}  Bc6 {[%clk 0:03:01]} 10. Nxc6 {[%clk 0:02:52]}  Nxc6 {[%clk 0:03:00]} 11. e3 {[%clk 0:02:50]}  Na5 {[%clk 0:02:56]} 12. Nd2 {[%clk 0:02:45]}  c5 {[%clk 0:02:53]} 13. Nxc4 {[%clk 0:02:44]}  cxd4 {[%clk 0:02:51]} 14. Nxa5 {[%clk 0:02:14]}  Qxa5 {[%clk 0:02:49]} 15. Bxb7 {[%clk 0:02:14]}  Rab8 {[%clk 0:02:46]} 16. Bg2 {[%clk 0:02:13]}  Rfc8 {[%clk 0:02:41]} 17. Qd3 {[%clk 0:02:10]}  dxe3 {[%clk 0:02:39]} 18. Qxe3 {[%clk 0:01:52]}  Nd5 {[%clk 0:02:34]} 19. Bxd5 {[%clk 0:01:39]}  Qxd5 {[%clk 0:02:30]} 20. Qe2 {[%clk 0:01:31]}  a5 {[%clk 0:02:20]} 21. Be3 {[%clk 0:01:26]}  Bf6 {[%clk 0:02:18]} 22. Rab1 {[%clk 0:01:23]}  Qb3 {[%clk 0:01:57]} 23. Qd1 {[%clk 0:00:36]}  Rc2 {[%clk 0:01:52]} 24. Qd6 {[%clk 0:00:28]}  g6 {[%clk 0:01:26]} 25. Qa6 {[%clk 0:00:20]}  Qxa4 {[%clk 0:01:17]} 26. Ra1 {[%clk 0:00:19]}  Qe4 {[%clk 0:01:07]} 27. Qxa5 {[%clk 0:00:18]}  Rcxb2 {[%clk 0:01:03]} 28. Qa4 {[%clk 0:00:17]}  Qxa4 {[%clk 0:00:43]} 29. Rxa4 {[%clk 0:00:17]}  Kg7 {[%clk 0:00:44]} 30. Ra7 {[%clk 0:00:16]}  R8b7 {[%clk 0:00:44]} 31. Rxb7 {[%clk 0:00:16]}  Rxb7 {[%clk 0:00:44]} 32. Kg2 {[%clk 0:00:17]}  h5 {[%clk 0:00:44]} 33. Rc1 {[%clk 0:00:16]}  h4 {[%clk 0:00:41]} 34. Rc4 {[%clk 0:00:15]}  hxg3 {[%clk 0:00:38]} 35. hxg3 {[%clk 0:00:15]}  g5 {[%clk 0:00:38]} 36. Rg4 {[%clk 0:00:15]}  Kg6 {[%clk 0:00:36]} 37. Ra4 {[%clk 0:00:15]}  Rb2 {[%clk 0:00:35]} 38. Ra7 {[%clk 0:00:15]}  Be5 {[%clk 0:00:31]} 39. Kf3 {[%clk 0:00:14]}  f5 {[%clk 0:00:27]} 40. Ra6 {[%clk 0:00:14]}  Kf6 {[%clk 0:00:23]} 41. Ra4 {[%clk 0:00:12]}  Rb3 {[%clk 0:00:23]} 42. Ke2 {[%clk 0:00:11]}  g4 {[%clk 0:00:20]} 43. Bf4 {[%clk 0:00:10]}  Rb2+ {[%clk 0:00:20]} 44. Kf1 {[%clk 0:00:10]}  Bxf4 {[%clk 0:00:17]} 45. Rxf4 {[%clk 0:00:09]}  e5 {[%clk 0:00:18]} 46. Ra4 {[%clk 0:00:09]}  Rb6 {[%clk 0:00:17]} 47. Ra5 {[%clk 0:00:09]}  Re6 {[%clk 0:00:16]} 48. Kg2 {[%clk 0:00:09]}  Kg5 {[%clk 0:00:16]} 49. Rd5 {[%clk 0:00:08]}  e4 {[%clk 0:00:16]} 50. Rb5 {[%clk 0:00:08]}  Rc6 {[%clk 0:00:16]} 51. Re5 {[%clk 0:00:07]}  Rc2 {[%clk 0:00:16]} 52. Kf1 {[%clk 0:00:07]}  Kf6 {[%clk 0:00:15]} 53. Rb5 {[%clk 0:00:07]}  Rc3 {[%clk 0:00:15]} 54. Ke2 {[%clk 0:00:07]}  Rf3 {[%clk 0:00:15]} 55. Rb6+ {[%clk 0:00:06]}  Kg5 {[%clk 0:00:15]} 56. Rb5 {[%clk 0:00:06]}  e3 {[%clk 0:00:14]} 57. fxe3 {[%clk 0:00:03]}  Rxg3 {[%clk 0:00:14]} 58. e4 {[%clk 0:00:04]}  Rf3 {[%clk 0:00:14]} 59. exf5 {[%clk 0:00:03]}  Rxf5 {[%clk 0:00:13]} 60. Rxf5+ {[%clk 0:00:02]}  Kxf5 {[%clk 0:00:13]} 61. Kf2 {[%clk 0:00:01]}  Kf4 {[%clk 0:00:14]} 62. Kg2 {[%clk 0:00:01]}  Kg5 {[%clk 0:00:14]} 63. Kg3 {[%clk 0:00:01]}  Kh5 {[%clk 0:00:15]} 64. Kg2 {[%clk 0:00:01]}  Kh4 {[%clk 0:00:16]} 65. Kh2 {[%clk 0:00:02]}  g3+ {[%clk 0:00:16]} 66. Kg2 {[%clk 0:00:01]}  Kg4 {[%clk 0:00:17]} 67. Kf1 {[%clk 0:00:01]}  Kf3 {[%clk 0:00:17]} 68. Kg1 {[%clk 0:00:01]}  Kf4 {[%clk 0:00:18]} 69. Kg2 {[%clk 0:00:02]}  Kg4 {[%clk 0:00:18]} 70. Kg1 {[%clk 0:00:02]}  Kh3 {[%clk 0:00:19]} 71. Kh1 {[%clk 0:00:03]}  Kh4 {[%clk 0:00:19]} 72. Kg2 {[%clk 0:00:03]}  Kg4 {[%clk 0:00:20]} 1/2-1/2


[Site "https://www.chess.com"]

[Event "Titled Tuesday Blitz July 4 Early 2023"]
[White "Sovetbekova, Nurai"]
[Black "Pham, Le Thao Nguyen"]
[WhiteFideId "13801910"]
[BlackFideId "12401226"]
[WhiteElo "2351"]
[BlackElo "2484"]
[Result "0-1"]
[Round "5"]
[TimeControl "180+2"]
[Date "2023.07.04"]
[WhiteClock "0:00:00"]
[BlackClock "0:00:06"]
[Board "174"]

1. d4 {[%clk 0:03:00]}  d5 {[%clk 0:02:58]} 2. c4 {[%clk 0:03:00]}  dxc4 {[%clk 0:02:57]} 3. e4 {[%clk 0:02:59]}  Nf6 {[%clk 0:02:58]} 4. e5 {[%clk 0:02:54]}  Nd5 {[%clk 0:02:56]} 5. Bxc4 {[%clk 0:02:52]}  Nb6 {[%clk 0:02:57]} 6. Bb5+ {[%clk 0:02:42]}  Bd7 {[%clk 0:02:42]} 7. Bxd7+ {[%clk 0:02:41]}  Qxd7 {[%clk 0:02:42]} 8. Nc3 {[%clk 0:02:37]}  Nc6 {[%clk 0:02:40]} 9. Nf3 {[%clk 0:02:34]}  e6 {[%clk 0:02:34]} 10. O-O {[%clk 0:02:33]}  O-O-O {[%clk 0:02:25]} 11. Be3 {[%clk 0:02:27]}  h6 {[%clk 0:02:11]} 12. a3 {[%clk 0:02:04]}  f5 {[%clk 0:01:59]} 13. b4 {[%clk 0:01:41]}  g5 {[%clk 0:01:29]} 14. b5 {[%clk 0:01:41]}  Na5 {[%clk 0:01:21]} 15. Na4 {[%clk 0:01:21]}  Qxb5 {[%clk 0:00:53]} 16. Nxb6+ {[%clk 0:01:21]}  axb6 {[%clk 0:00:54]} 17. Rb1 {[%clk 0:01:16]}  Qd5 {[%clk 0:00:48]} 18. a4 {[%clk 0:01:11]}  Rh7 {[%clk 0:00:24]} 19. Rb5 {[%clk 0:01:00]}  Qa2 {[%clk 0:00:23]} 20. Bd2 {[%clk 0:00:53]}  Nc4 {[%clk 0:00:20]} 21. Bc3 {[%clk 0:00:40]}  Rhd7 {[%clk 0:00:19]} 22. Ne1 {[%clk 0:00:31]}  c6 {[%clk 0:00:14]} 23. Rb1 {[%clk 0:00:25]}  Nxe5 {[%clk 0:00:09]} 24. Rxb6 {[%clk 0:00:17]}  Qd5 {[%clk 0:00:08]} 25. Qb1 {[%clk 0:00:14]}  Nc4 {[%clk 0:00:08]} 26. Rb4 {[%clk 0:00:13]}  Bxb4 {[%clk 0:00:07]} 27. Qxb4 {[%clk 0:00:14]}  Nd6 {[%clk 0:00:04]} 28. Nd3 {[%clk 0:00:12]}  Ne4 {[%clk 0:00:04]} 29. Ba1 {[%clk 0:00:10]}  Qd6 {[%clk 0:00:04]} 30. Qb1 {[%clk 0:00:10]}  Rc7 {[%clk 0:00:04]} 31. Rd1 {[%clk 0:00:08]}  Qa3 {[%clk 0:00:03]} 32. f3 {[%clk 0:00:07]}  Nc3 {[%clk 0:00:03]} 33. Bxc3 {[%clk 0:00:07]}  Qxc3 {[%clk 0:00:04]} 34. Nc5 {[%clk 0:00:06]}  Rxd4 {[%clk 0:00:04]} 35. Nxe6 {[%clk 0:00:03]}  Qe3+ {[%clk 0:00:04]} 36. Kh1 {[%clk 0:00:03]}  Rxd1+ {[%clk 0:00:05]} 37. Qxd1 {[%clk 0:00:00]}  Qxe6 {[%clk 0:00:06]} 0-1


[Site "https://www.chess.com"]

[Event "Titled Tuesday Blitz July 4 Early 2023"]
[White "Kuchava, Ana"]
[Black "Miszler, Levente"]
[WhiteFideId "13605348"]
[BlackFideId "763276"]
[WhiteElo "2284"]
[BlackElo "2466"]
[Result "0-1"]
[Round "5"]
[TimeControl "180+2"]
[Date "2023.07.04"]
[WhiteClock "0:00:35"]
[BlackClock "0:01:54"]
[Board "176"]

1. d4 {[%clk 0:03:00]}  Nf6 {[%clk 0:02:58]} 2. Nf3 {[%clk 0:03:00]}  c5 {[%clk 0:02:58]} 3. d5 {[%clk 0:02:59]}  g6 {[%clk 0:02:55]} 4. c4 {[%clk 0:02:57]}  Bg7 {[%clk 0:02:55]} 5. Nc3 {[%clk 0:02:53]}  e6 {[%clk 0:02:53]} 6. e4 {[%clk 0:02:50]}  exd5 {[%clk 0:02:53]} 7. cxd5 {[%clk 0:02:48]}  O-O {[%clk 0:02:52]} 8. Bd3 {[%clk 0:02:48]}  Re8 {[%clk 0:02:50]} 9. O-O {[%clk 0:02:38]}  d6 {[%clk 0:02:50]} 10. a4 {[%clk 0:02:36]}  Bg4 {[%clk 0:02:45]} 11. h3 {[%clk 0:02:29]}  Bxf3 {[%clk 0:02:44]} 12. Qxf3 {[%clk 0:02:30]}  Nbd7 {[%clk 0:02:45]} 13. Bf4 {[%clk 0:02:27]}  Ne5 {[%clk 0:02:44]} 14. Qd1 {[%clk 0:02:24]}  Nxd3 {[%clk 0:02:42]} 15. Qxd3 {[%clk 0:02:22]}  b6 {[%clk 0:02:40]} 16. Rfe1 {[%clk 0:02:07]}  a6 {[%clk 0:02:40]} 17. Rad1 {[%clk 0:01:56]}  Qc7 {[%clk 0:02:40]} 18. Qg3 {[%clk 0:01:54]}  Rad8 {[%clk 0:02:39]} 19. e5 {[%clk 0:01:47]}  Nh5 {[%clk 0:02:32]} 20. exd6 {[%clk 0:01:39]}  Qd7 {[%clk 0:02:25]} 21. Qf3 {[%clk 0:01:27]}  Rxe1+ {[%clk 0:02:04]} 22. Rxe1 {[%clk 0:01:22]}  Nxf4 {[%clk 0:02:05]} 23. Qxf4 {[%clk 0:01:22]}  Qxd6 {[%clk 0:02:05]} 24. Re8+ {[%clk 0:01:08]}  Rxe8 {[%clk 0:02:02]} 25. Qxd6 {[%clk 0:01:03]}  Re1+ {[%clk 0:02:01]} 26. Kh2 {[%clk 0:01:01]}  Be5+ {[%clk 0:02:02]} 27. Qxe5 {[%clk 0:00:58]}  Rxe5 {[%clk 0:02:03]} 28. f4 {[%clk 0:00:56]}  Re3 {[%clk 0:01:58]} 29. d6 {[%clk 0:00:53]}  Rd3 {[%clk 0:01:57]} 30. Ne4 {[%clk 0:00:50]}  f5 {[%clk 0:01:54]} 31. d7 {[%clk 0:00:35]}  fxe4 {[%clk 0:01:54]} 0-1


[Site "https://www.chess.com"]

[Event "Titled Tuesday Blitz July 4 Early 2023"]
[White "LangesNasenhaar"]
[Black "Zaksaite, Salomeja"]
[BlackFideId "12801496"]
[WhiteElo "2460"]
[BlackElo "2282"]
[Result "1-0"]
[Round "5"]
[TimeControl "180+2"]
[Date "2023.07.04"]
[WhiteClock "0:01:22"]
[BlackClock "0:00:52"]
[Board "177"]

1. d4 {[%clk 0:03:00]}  Nf6 {[%clk 0:02:57]} 2. Nc3 {[%clk 0:03:00]}  d5 {[%clk 0:02:56]} 3. Bf4 {[%clk 0:03:01]}  a6 {[%clk 0:02:54]} 4. e3 {[%clk 0:03:00]}  b5 {[%clk 0:02:50]} 5. a3 {[%clk 0:02:56]}  Bf5 {[%clk 0:02:42]} 6. Nf3 {[%clk 0:02:51]}  e6 {[%clk 0:02:42]} 7. Ne5 {[%clk 0:02:52]}  Bd6 {[%clk 0:02:42]} 8. g4 {[%clk 0:02:48]}  Bg6 {[%clk 0:02:40]} 9. h4 {[%clk 0:02:45]}  h6 {[%clk 0:02:31]} 10. Nxg6 {[%clk 0:02:44]}  fxg6 {[%clk 0:02:31]} 11. Bd3 {[%clk 0:02:39]}  Kf7 {[%clk 0:02:30]} 12. Qf3 {[%clk 0:02:36]}  Bxf4 {[%clk 0:02:29]} 13. Qxf4 {[%clk 0:02:34]}  Qd6 {[%clk 0:02:29]} 14. Qf3 {[%clk 0:02:31]}  Nd7 {[%clk 0:01:58]} 15. e4 {[%clk 0:02:19]}  dxe4 {[%clk 0:01:52]} 16. Nxe4 {[%clk 0:02:19]}  Qd5 {[%clk 0:01:41]} 17. O-O-O {[%clk 0:02:11]}  Qa2 {[%clk 0:01:24]} 18. g5 {[%clk 0:02:02]}  hxg5 {[%clk 0:01:15]} 19. hxg5 {[%clk 0:01:46]}  Rxh1 {[%clk 0:01:10]} 20. Rxh1 {[%clk 0:01:46]}  Qa1+ {[%clk 0:01:09]} 21. Kd2 {[%clk 0:01:46]}  Qxb2 {[%clk 0:01:09]} 22. gxf6 {[%clk 0:01:36]}  Qxd4 {[%clk 0:00:52]} 23. Ng5+ {[%clk 0:01:22]} 1-0


[Site "https://www.chess.com"]

[Event "Titled Tuesday Blitz July 4 Early 2023"]
[White "Martin, Lewis"]
[Black "Streltsov, Alexey"]
[WhiteFideId "410551"]
[BlackFideId "24104434"]
[WhiteElo "2262"]
[BlackElo "2425"]
[Result "0-1"]
[Round "5"]
[TimeControl "180+2"]
[Date "2023.07.04"]
[WhiteClock "0:00:06"]
[BlackClock "0:00:36"]
[Board "180"]

1. e4 {[%clk 0:03:00]}  c6 {[%clk 0:01:21]} 2. d4 {[%clk 0:03:00]}  d5 {[%clk 0:01:20]} 3. Nc3 {[%clk 0:03:00]}  dxe4 {[%clk 0:01:21]} 4. Nxe4 {[%clk 0:03:01]}  Nf6 {[%clk 0:01:22]} 5. Nxf6+ {[%clk 0:03:00]}  exf6 {[%clk 0:01:23]} 6. c3 {[%clk 0:03:00]}  Bd6 {[%clk 0:01:23]} 7. Bd3 {[%clk 0:02:59]}  Na6 {[%clk 0:01:24]} 8. Ne2 {[%clk 0:02:45]}  Nc7 {[%clk 0:01:25]} 9. Qc2 {[%clk 0:02:44]}  Be6 {[%clk 0:01:26]} 10. a3 {[%clk 0:02:38]}  Nd5 {[%clk 0:01:26]} 11. c4 {[%clk 0:02:36]}  Ne7 {[%clk 0:01:26]} 12. Be3 {[%clk 0:02:33]}  g6 {[%clk 0:01:26]} 13. O-O-O {[%clk 0:02:27]}  h5 {[%clk 0:01:23]} 14. Rhe1 {[%clk 0:02:19]}  Kf8 {[%clk 0:01:23]} 15. f4 {[%clk 0:02:17]}  Nf5 {[%clk 0:01:20]} 16. Bf2 {[%clk 0:02:15]}  Qc7 {[%clk 0:01:17]} 17. g3 {[%clk 0:02:13]}  Rd8 {[%clk 0:01:15]} 18. c5 {[%clk 0:02:11]}  Be7 {[%clk 0:01:15]} 19. Bc4 {[%clk 0:02:05]}  Bxc4 {[%clk 0:01:09]} 20. Qxc4 {[%clk 0:02:04]}  Kg7 {[%clk 0:01:10]} 21. d5 {[%clk 0:02:01]}  cxd5 {[%clk 0:01:09]} 22. Rxd5 {[%clk 0:02:01]}  Rxd5 {[%clk 0:01:10]} 23. Qxd5 {[%clk 0:02:01]}  Bxc5 {[%clk 0:01:06]} 24. Bxc5 {[%clk 0:01:54]}  Rc8 {[%clk 0:01:03]} 25. Kb1 {[%clk 0:01:14]}  Qxc5 {[%clk 0:01:03]} 26. Qxc5 {[%clk 0:01:14]}  Rxc5 {[%clk 0:01:04]} 27. Nc3 {[%clk 0:01:13]}  Nd4 {[%clk 0:00:57]} 28. Re7 {[%clk 0:01:10]}  Nf3 {[%clk 0:00:50]} 29. h4 {[%clk 0:01:03]}  g5 {[%clk 0:00:41]} 30. hxg5 {[%clk 0:01:00]}  fxg5 {[%clk 0:00:42]} 31. Rxb7 {[%clk 0:00:59]}  h4 {[%clk 0:00:42]} 32. gxh4 {[%clk 0:00:55]}  gxh4 {[%clk 0:00:43]} 33. Ne4 {[%clk 0:00:55]}  h3 {[%clk 0:00:39]} 34. Nxc5 {[%clk 0:00:24]}  h2 {[%clk 0:00:39]} 35. Rxa7 {[%clk 0:00:21]}  h1=Q+ {[%clk 0:00:37]} 36. Ka2 {[%clk 0:00:22]}  Nd2 {[%clk 0:00:35]} 37. a4 {[%clk 0:00:06]}  Qd5+ {[%clk 0:00:36]} 0-1


[Site "https://www.chess.com"]

[Event "Titled Tuesday Blitz July 4 Early 2023"]
[White "laimis61"]
[Black "Mickiewicz, Piotr"]
[BlackFideId "1114891"]
[WhiteElo "2261"]
[BlackElo "2424"]
[Result "0-1"]
[Round "5"]
[TimeControl "180+2"]
[Date "2023.07.04"]
[WhiteClock "0:01:05"]
[BlackClock "0:00:52"]
[Board "181"]

1. e4 {[%clk 0:03:00]}  c5 {[%clk 0:02:56]} 2. Nf3 {[%clk 0:02:59]}  d6 {[%clk 0:02:55]} 3. d4 {[%clk 0:03:00]}  cxd4 {[%clk 0:02:56]} 4. Nxd4 {[%clk 0:03:00]}  Nf6 {[%clk 0:02:56]} 5. Nc3 {[%clk 0:02:59]}  Nc6 {[%clk 0:02:55]} 6. Bg5 {[%clk 0:02:54]}  e6 {[%clk 0:02:54]} 7. Qd2 {[%clk 0:02:53]}  h6 {[%clk 0:02:51]} 8. Be3 {[%clk 0:02:48]}  Ng4 {[%clk 0:02:49]} 9. Nxc6 {[%clk 0:02:41]}  bxc6 {[%clk 0:02:46]} 10. Bf4 {[%clk 0:02:41]}  e5 {[%clk 0:02:38]} 11. Bg3 {[%clk 0:02:40]}  Be6 {[%clk 0:02:37]} 12. h3 {[%clk 0:02:36]}  Nf6 {[%clk 0:02:36]} 13. Be2 {[%clk 0:02:25]}  Be7 {[%clk 0:02:34]} 14. O-O {[%clk 0:02:24]}  O-O {[%clk 0:02:26]} 15. b4 {[%clk 0:02:21]}  Rb8 {[%clk 0:02:18]} 16. a3 {[%clk 0:02:20]}  a5 {[%clk 0:02:17]} 17. bxa5 {[%clk 0:02:14]}  Qxa5 {[%clk 0:02:17]} 18. Rfd1 {[%clk 0:02:14]}  Rfd8 {[%clk 0:02:14]} 19. Nd5 {[%clk 0:02:03]}  Qxd2 {[%clk 0:02:11]} 20. Nxe7+ {[%clk 0:02:01]}  Kf8 {[%clk 0:02:11]} 21. Rxd2 {[%clk 0:02:00]}  Kxe7 {[%clk 0:02:11]} 22. a4 {[%clk 0:02:00]}  Nxe4 {[%clk 0:02:09]} 23. Rdd1 {[%clk 0:01:54]}  Nxg3 {[%clk 0:02:08]} 24. fxg3 {[%clk 0:01:53]}  Rb2 {[%clk 0:02:03]} 25. Bf3 {[%clk 0:01:48]}  d5 {[%clk 0:02:03]} 26. c4 {[%clk 0:01:48]}  e4 {[%clk 0:02:01]} 27. cxd5 {[%clk 0:01:48]}  cxd5 {[%clk 0:02:01]} 28. Bg4 {[%clk 0:01:45]}  f5 {[%clk 0:01:53]} 29. Bh5 {[%clk 0:01:44]}  d4 {[%clk 0:01:53]} 30. a5 {[%clk 0:01:43]}  d3 {[%clk 0:01:46]} 31. a6 {[%clk 0:01:42]}  Ra8 {[%clk 0:01:45]} 32. g4 {[%clk 0:01:35]}  f4 {[%clk 0:01:43]} 33. Bg6 {[%clk 0:01:34]}  Bd5 {[%clk 0:01:35]} 34. Ra4 {[%clk 0:01:33]}  e3 {[%clk 0:01:28]} 35. Bxd3 {[%clk 0:01:29]}  Rxg2+ {[%clk 0:01:27]} 36. Kf1 {[%clk 0:01:29]}  Rf2+ {[%clk 0:01:21]} 37. Ke1 {[%clk 0:01:28]}  g5 {[%clk 0:01:12]} 38. Rb1 {[%clk 0:01:23]}  Rh2 {[%clk 0:01:04]} 39. a7 {[%clk 0:01:19]}  Rh1+ {[%clk 0:01:01]} 40. Bf1 {[%clk 0:01:18]}  f3 {[%clk 0:00:54]} 41. Rb8 {[%clk 0:01:05]}  e2 {[%clk 0:00:52]} 0-1


[Site "https://www.chess.com"]

[Event "Titled Tuesday Blitz July 4 Early 2023"]
[White "Carrasco Miranda, Andres"]
[Black "Kiseleva, Arina"]
[WhiteFideId "3405990"]
[BlackFideId "4164989"]
[WhiteElo "2405"]
[BlackElo "2201"]
[Result "1-0"]
[Round "5"]
[TimeControl "180+2"]
[Date "2023.07.04"]
[WhiteClock "0:00:27"]
[BlackClock "0:00:00"]
[Board "188"]

1. d4 {[%clk 0:02:50]}  Nf6 {[%clk 0:02:54]} 2. c4 {[%clk 0:02:42]}  e6 {[%clk 0:02:55]} 3. g3 {[%clk 0:02:42]}  Bb4+ {[%clk 0:02:54]} 4. Nd2 {[%clk 0:02:42]}  O-O {[%clk 0:02:52]} 5. Bg2 {[%clk 0:02:42]}  Qe7 {[%clk 0:02:51]} 6. Nf3 {[%clk 0:02:40]}  a5 {[%clk 0:02:50]} 7. O-O {[%clk 0:02:40]}  Bxd2 {[%clk 0:02:48]} 8. Bxd2 {[%clk 0:02:35]}  d6 {[%clk 0:02:47]} 9. Bc3 {[%clk 0:02:36]}  Ne4 {[%clk 0:02:46]} 10. Qc2 {[%clk 0:02:36]}  Nxc3 {[%clk 0:02:37]} 11. Qxc3 {[%clk 0:02:36]}  f5 {[%clk 0:02:37]} 12. Rfe1 {[%clk 0:02:33]}  Nd7 {[%clk 0:02:17]} 13. e4 {[%clk 0:02:31]}  f4 {[%clk 0:02:16]} 14. e5 {[%clk 0:02:24]}  c6 {[%clk 0:01:53]} 15. Qa3 {[%clk 0:02:06]}  c5 {[%clk 0:01:42]} 16. exd6 {[%clk 0:01:55]}  Qxd6 {[%clk 0:01:40]} 17. Rad1 {[%clk 0:01:51]}  fxg3 {[%clk 0:01:02]} 18. hxg3 {[%clk 0:01:48]}  Qb6 {[%clk 0:00:52]} 19. Ng5 {[%clk 0:01:26]}  Nf6 {[%clk 0:00:14]} 20. dxc5 {[%clk 0:01:21]}  Qb4 {[%clk 0:00:14]} 21. Nxe6 {[%clk 0:01:05]}  Bxe6 {[%clk 0:00:14]} 22. Rxe6 {[%clk 0:01:06]}  Qxa3 {[%clk 0:00:14]} 23. bxa3 {[%clk 0:01:06]}  Rab8 {[%clk 0:00:14]} 24. Rb6 {[%clk 0:01:01]}  Rf7 {[%clk 0:00:13]} 25. c6 {[%clk 0:00:59]}  Rc7 {[%clk 0:00:12]} 26. cxb7 {[%clk 0:00:57]}  Rxc4 {[%clk 0:00:11]} 27. Bd5+ {[%clk 0:00:54]}  Nxd5 {[%clk 0:00:10]} 28. Rxd5 {[%clk 0:00:55]}  Rc7 {[%clk 0:00:07]} 29. Rdb5 {[%clk 0:00:46]}  a4 {[%clk 0:00:07]} 30. Kg2 {[%clk 0:00:46]}  Kf7 {[%clk 0:00:06]} 31. Rb4 {[%clk 0:00:45]}  Ke7 {[%clk 0:00:04]} 32. g4 {[%clk 0:00:34]}  h6 {[%clk 0:00:04]} 33. Kg3 {[%clk 0:00:33]}  Kf7 {[%clk 0:00:04]} 34. Kf4 {[%clk 0:00:28]}  Kg8 {[%clk 0:00:04]} 35. f3 {[%clk 0:00:28]}  Rc2 {[%clk 0:00:04]} 36. Rxa4 {[%clk 0:00:27]}  Rxa2 {[%clk 0:00:00]} 37. Ra8 {[%clk 0:00:27]} 1-0


[Site "https://www.chess.com"]

[Event "Titled Tuesday Blitz July 4 Early 2023"]
[White "Feliz Dotel, Dewar Bienvenido"]
[Black "Buscar, Michael"]
[WhiteFideId "6402801"]
[BlackFideId "2603616"]
[WhiteElo "2178"]
[BlackElo "2390"]
[Result "0-1"]
[Round "5"]
[TimeControl "180+2"]
[Date "2023.07.04"]
[WhiteClock "0:00:00"]
[BlackClock "0:00:16"]
[Board "190"]

1. d4 {[%clk 0:02:58]}  d5 {[%clk 0:02:49]} 2. e3 {[%clk 0:02:58]}  Nf6 {[%clk 0:02:46]} 3. Nf3 {[%clk 0:02:57]}  Bg4 {[%clk 0:02:42]} 4. Be2 {[%clk 0:02:55]}  e6 {[%clk 0:02:40]} 5. O-O {[%clk 0:02:55]}  Be7 {[%clk 0:02:38]} 6. Nbd2 {[%clk 0:02:52]}  O-O {[%clk 0:02:38]} 7. b3 {[%clk 0:02:51]}  a5 {[%clk 0:02:33]} 8. a3 {[%clk 0:02:35]}  a4 {[%clk 0:02:29]} 9. b4 {[%clk 0:02:35]}  Nbd7 {[%clk 0:02:29]} 10. c4 {[%clk 0:02:32]}  dxc4 {[%clk 0:02:16]} 11. Nxc4 {[%clk 0:02:32]}  Ne4 {[%clk 0:02:13]} 12. Bb2 {[%clk 0:02:28]}  Nd6 {[%clk 0:02:01]} 13. Nce5 {[%clk 0:02:04]}  Nxe5 {[%clk 0:01:58]} 14. Nxe5 {[%clk 0:02:05]}  Bxe2 {[%clk 0:01:58]} 15. Qxe2 {[%clk 0:02:06]}  Bf6 {[%clk 0:01:48]} 16. Nf3 {[%clk 0:01:54]}  b5 {[%clk 0:01:46]} 17. Nd2 {[%clk 0:01:36]}  Re8 {[%clk 0:01:35]} 18. Rac1 {[%clk 0:01:34]}  e5 {[%clk 0:01:34]} 19. dxe5 {[%clk 0:01:33]}  Bxe5 {[%clk 0:01:32]} 20. Bxe5 {[%clk 0:01:33]}  Rxe5 {[%clk 0:01:32]} 21. Rfd1 {[%clk 0:01:26]}  Rd5 {[%clk 0:01:20]} 22. Nf3 {[%clk 0:01:24]}  Nc4 {[%clk 0:01:11]} 23. Rxd5 {[%clk 0:01:05]}  Qxd5 {[%clk 0:01:09]} 24. Nd4 {[%clk 0:01:02]}  Nxa3 {[%clk 0:01:02]} 25. Rxc7 {[%clk 0:01:01]}  Nc4 {[%clk 0:00:41]} 26. h3 {[%clk 0:00:50]}  a3 {[%clk 0:00:40]} 27. Nxb5 {[%clk 0:00:38]}  Qxb5 {[%clk 0:00:32]} 28. Rxc4 {[%clk 0:00:33]}  Qxc4 {[%clk 0:00:30]} 29. Qxc4 {[%clk 0:00:32]}  a2 {[%clk 0:00:29]} 30. h4 {[%clk 0:00:19]}  a1=Q+ {[%clk 0:00:28]} 31. Kh2 {[%clk 0:00:19]}  Qe5+ {[%clk 0:00:28]} 32. g3 {[%clk 0:00:16]}  h5 {[%clk 0:00:27]} 33. b5 {[%clk 0:00:14]}  Rb8 {[%clk 0:00:23]} 34. b6 {[%clk 0:00:08]}  Rxb6 {[%clk 0:00:21]} 35. Qc8+ {[%clk 0:00:08]}  Kh7 {[%clk 0:00:21]} 36. Qc2+ {[%clk 0:00:08]}  g6 {[%clk 0:00:20]} 37. Qc4 {[%clk 0:00:04]}  Qf5 {[%clk 0:00:17]} 38. Kg2 {[%clk 0:00:01]}  Rb2 {[%clk 0:00:16]} 39. Qf1 {[%clk 0:00:01]}  Qe4+ {[%clk 0:00:16]} 40. Kg1 {[%clk 0:00:00]}  Rb1 {[%clk 0:00:16]} 0-1


[Site "https://www.chess.com"]